fUSD/lending_fUSD_20241122
["ID","MTS","AMOUNT","RATE_DAILY","PERIOD"]
[342990830,1732264246096,-500.0,0.0009863,120]
[342990831,1732264246105,-500.0,0.0009863,120]
[342990832,1732264246115,-500.0,0.0009863,120]
[342990833,1732264246124,-499.68611315,0.0009863,120]
[342990834,1732264246234,-500.0,0.0009863,120]
[342990835,1732264246261,-500.0,0.0009863,120]
[342990836,1732264246271,-500.0,0.0009863,120]
[342990837,1732264246280,-502.19898775,0.0009863,120]
[342990838,1732264246289,-503.30083103,0.0009863,120]
[342990839,1732264246298,-500.0,0.0009863,120]
[342990840,1732264246308,-500.0,0.0009863,120]
[342990841,1732264246317,-500.0,0.0009863,120]
[342990842,1732264246327,-362.41,0.0009863,120]
[342990843,1732264246336,-500.0,0.0009863,120]
[342990844,1732264246345,-500.0,0.0009863,120]
[342990845,1732264246354,-249.73092795,0.0009863,120]
[342990846,1732264246363,-500.0,0.0009863,120]
[342990847,1732264246372,-626.92194728,0.0009863,120]
[342990848,1732264246382,-531.62,0.0009863,120]
[342990849,1732264246391,-503.48198805,0.0009863,120]
[342990850,1732264246401,-500.0,0.0009863,120]
[342990851,1732264246410,-500.0,0.0009863,120]
[342990852,1732264246419,-568.22,0.0009863,120]
[342990853,1732264246428,-500.0,0.0009863,120]
[342990854,1732264246437,-700.0,0.0009863,120]
[342990855,1732264246447,-500.0,0.0009863,120]
[342990856,1732264246456,-296.9174952,0.0009863,120]
[342990857,1732264246465,-500.0,0.0009863,60]
[342990858,1732264246474,-523.62,0.0009863,120]
[342990859,1732264246483,-500.0,0.0009863,120]
[342990860,1732264246493,-500.0,0.0009863,120]
[342990861,1732264246502,-500.0,0.0009863,120]
[342990862,1732264246511,-500.0,0.0009863,120]
[342990863,1732264246520,-535.12197229,0.0009863,120]
[342990864,1732264246529,-524.41901193,0.0009863,120]
[342990865,1732264246538,-500.0,0.0009863,120]
[342990866,1732264246551,-640.25,0.0009863,120]
[342990867,1732264246560,-501.07112825,0.0009863,120]
[342990868,1732264246569,-500.0,0.0009863,120]
[342990869,1732264246582,-500.0,0.0009863,120]
[342990870,1732264246591,-500.0,0.0009863,120]
[342990871,1732264246600,-500.0,0.0009863,120]
[342990872,1732264246610,-571.09637883,0.0009863,120]
[342990873,1732264246619,-504.69757034,0.0009863,120]
[342990874,1732264246629,-500.0,0.0009863,120]
[342990875,1732264246639,-503.73814467,0.0009863,120]
[342990876,1732264246648,-502.02110279,0.0009863,120]
[342990877,1732264246657,-500.0,0.0009863,120]
[342990878,1732264246667,-501.53557343,0.0009863,120]
[342990879,1732264246677,-500.0,0.0009863,120]
[342990880,1732264246686,-500.0,0.0009863,120]
[342990881,1732264246695,-508.83241,0.0009863,120]
[342990882,1732264246704,-500.0,0.0009863,120]
[342990883,1732264246714,-199.09383025,0.0009863,120]
[342990884,1732264246723,-500.0,0.0009863,120]
[342990885,1732264246732,-500.0,0.0009863,120]
[342990886,1732264246741,-500.0,0.0009863,120]
[342990887,1732264246751,-502.71113803,0.0009863,120]
[342990888,1732264246760,-500.0,0.0009863,120]
[342990889,1732264246769,-500.0,0.0009863,120]
[342990890,1732264246778,-1000.14234939,0.0009863,120]
[342990891,1732264246787,-500.0,0.0009863,120]
[342990892,1732264246796,-500.0,0.0009863,120]
[342990893,1732264246805,-537.13023649,0.0009863,120]
[342990894,1732264246814,-398.07597102,0.0009863,120]
[342990895,1732264246824,-500.0,0.0009863,120]
[342990896,1732264246834,-500.0,0.0009863,120]
[342990897,1732264246843,-500.0,0.0009863,120]
[342990898,1732264246852,-310.77,0.0009863,120]
[342990899,1732264246861,-596.47342801,0.0009863,120]
[342990900,1732264246870,-500.0,0.0009863,120]
[342990901,1732264246879,-500.0,0.0009863,120]
[342990902,1732264246888,-500.0,0.0009863,120]
[342990903,1732264246897,-500.0,0.0009863,120]
[342990904,1732264246906,-500.0,0.0009863,120]
[342990905,1732264246915,-500.0,0.0009863,120]
[342990906,1732264246924,-500.0,0.0009863,120]
[342990907,1732264246933,-546.17,0.0009863,120]
[342990908,1732264246942,-535.15082061,0.0009863,120]
[342990909,1732264246952,-530.09369412,0.0009863,120]
[342990910,1732264246961,-519.36646421,0.0009863,120]
[342990911,1732264246970,-500.0,0.0009863,120]
[342990912,1732264246980,-639.24762097,0.0009863,120]
[342990913,1732264246989,-500.0,0.0009863,120]
[342990914,1732264246998,-157.70168644,0.0009863,120]
[342990915,1732264247007,-500.0,0.0009863,120]
[342990916,1732264247016,-500.0,0.0009863,120]
[342990917,1732264247026,-500.0,0.0009863,120]
[342990918,1732264247036,-500.0,0.0009863,120]
[342990919,1732264247045,-500.0,0.0009863,120]
[342990920,1732264247054,-500.0,0.0009863,120]
[342990921,1732264247063,-330.61381336,0.0009863,2]
[342990922,1732264247074,-500.0,0.0009863,120]
[342990923,1732264247086,-503.0,0.0009863,120]
[342990924,1732264247096,-500.0,0.0009863,120]
[342990925,1732264247106,-500.0,0.0009863,120]
[342990926,1732264247115,-581.97824525,0.0009863,120]
[342990927,1732264247124,-500.0,0.0009863,120]
[342990928,1732264247134,-499.52,0.0009863,120]
[342990929,1732264247143,-500.0,0.0009863,120]
[342990930,1732264247153,-500.0,0.0009863,120]
[342990931,1732264247162,-500.0,0.0009863,120]
[342990932,1732264247171,-500.0,0.0009863,120]
[342990933,1732264247181,-500.0,0.0009863,21]
[342990934,1732264247190,-500.0,0.0009863,21]
[342990935,1732264247199,-500.0,0.0009863,120]
[342990936,1732264247208,-500.0,0.0009863,120]
[342990937,1732264247218,-500.0,0.0009863,120]
[342990938,1732264247227,-500.0,0.0009863,120]
[342990939,1732264247240,-500.0,0.0009863,120]
[342990940,1732264247249,-523.30513843,0.0009863,120]
[342990941,1732264247258,-500.0,0.0009863,120]
[342990942,1732264247268,-500.0,0.0009863,120]
[342990943,1732264247277,-500.0,0.0009863,120]
[342990944,1732264247287,-500.0,0.0009863,7]
[342990945,1732264247296,-500.0,0.0009863,120]
[342990946,1732264247306,-500.0,0.0009863,120]
[342990947,1732264247317,-500.0,0.0009863,120]
[342990948,1732264247327,-500.0,0.0009863,120]
[342990949,1732264247336,-500.0,0.0009863,120]
[342990950,1732264247346,-500.0,0.0009863,120]
[342990951,1732264247355,-500.0,0.0009863,120]
[342990952,1732264247365,-394.10093253,0.0009863,120]
[342990953,1732264247374,-500.0,0.0009863,120]
[342990954,1732264247386,-500.0,0.0009863,120]
[342990955,1732264247395,-500.0,0.0009863,120]
[342990956,1732264247404,-500.0,0.0009863,120]
[342990957,1732264247413,-500.0,0.0009863,120]
[342990958,1732264247423,-500.0,0.0009863,120]
[342990959,1732264247432,-500.0,0.0009863,120]
[342990960,1732264247442,-500.0,0.0009863,120]
[342990961,1732264247452,-500.0,0.0009863,120]
[342990962,1732264247462,-500.0,0.0009863,120]
[342990963,1732264247473,-500.0,0.0009863,120]
[342990964,1732264247482,-514.21,0.0009863,120]
[342990965,1732264247491,-502.01237291,0.0009863,120]
[342990966,1732264247500,-500.0,0.0009863,120]
[342990967,1732264247509,-498.19314701,0.0009863,120]
[342990968,1732264247522,-500.0,0.0009863,120]
[342990969,1732264247531,-252.2473929,0.0009863,120]
[342990970,1732264247541,-500.0,0.0009863,120]
[342990971,1732264247550,-500.0,0.0009863,120]
[342990972,1732264247559,-500.0,0.0009863,120]
[342990973,1732264247569,-500.0,0.0009863,120]
[342990974,1732264247579,-154.06501038,0.0009863,120]
[342990975,1732264247589,-500.0,0.0009863,120]
[342990976,1732264247598,-500.0,0.0009863,120]
[342990977,1732264247607,-176.37089523,0.0009863,120]
[342990978,1732264247616,-768.85,0.0009863,120]
[342990979,1732264247625,-768.85,0.0009863,120]
[342990980,1732264247638,-500.0,0.0009863,120]
[342990981,1732264247647,-500.0,0.0009863,120]
[342990982,1732264247656,-500.0,0.0009863,120]
[342990983,1732264247667,-500.0,0.0009863,120]
[342990984,1732264247678,-500.0,0.0009863,120]
[342990985,1732264247687,-516.15,0.0009863,120]
[342990986,1732264247696,-500.0,0.0009863,120]
[342990987,1732264247706,-500.0,0.0009863,120]
[342990988,1732264247715,-500.0,0.0009863,120]
[342990989,1732264247725,-500.0,0.0009863,120]
[342990990,1732264247735,-501.44,0.0009863,120]
[342990991,1732264247745,-500.0,0.0009863,120]
[342990992,1732264247755,-500.0,0.0009863,120]
[342990993,1732264247764,-569.5,0.0009863,120]
[342990994,1732264247773,-500.0,0.0009863,120]
[342990995,1732264247782,-344.48183189,0.0009863,120]
[342990996,1732264247792,-300.0,0.0009863,120]
[342990997,1732264247802,-1000.0,0.0009863,120]
[342990998,1732264247811,-500.0,0.0009863,120]
[342990999,1732264247821,-500.0,0.0009863,120]
[342991000,1732264247830,-500.0,0.0009863,120]
[342991001,1732264247839,-500.0,0.0009863,120]
[342991002,1732264247849,-643.58,0.0009863,120]
[342991003,1732264247858,-500.0,0.0009863,120]
[342991004,1732264247867,-397.66355563,0.0009863,120]
[342991005,1732264247876,-500.0,0.0009863,120]
[342991006,1732264247885,-500.0,0.0009863,120]
[342991007,1732264247894,-500.0,0.0009863,120]
[342991008,1732264247903,-500.0,0.0009863,2]
[342991009,1732264247912,-501.23431769,0.0009863,2]
[342991010,1732264247921,-500.0,0.0009863,120]
[342991011,1732264247930,-515.39,0.0009863,120]
[342991012,1732264247939,-515.39,0.0009863,120]
[342991013,1732264247948,-500.0,0.0009863,120]
[342991014,1732264247957,-500.0,0.0009863,120]
[342991015,1732264247967,-500.0,0.0009863,120]
[342991016,1732264247976,-446.99516401,0.0009863,120]
[342991017,1732264247985,-500.0,0.0009863,120]
[342991018,1732264247995,-500.0,0.0009863,120]
[342991019,1732264248005,-150.99,0.0009889,120]
[342991020,1732264248014,-768.85,0.00098899,120]
[342991021,1732264248024,-500.0,0.00098899,120]
[342991022,1732264248033,-500.0,0.00098899,120]
[342991023,1732264248043,-515.39,0.00098899,120]
[342991024,1732264248052,-220.94477754,0.00098899,120]
[342991025,1732264248062,-1129.16014282,0.000989,2]
[342991026,1732264248071,-209439.83293857,0.000989,120]
[342991027,1732264248083,-700.0,0.000989,36]
[342991028,1732264248097,-320.13756821,0.000989,2]
[342991029,1732264248107,-500.0,0.00098995,120]
[342991030,1732264248116,-500.0,0.00098995,120]
[342991031,1732264248126,-500.0,0.00098995,120]
[342991032,1732264248135,-500.0,0.00098995,120]
[342991033,1732264248144,-500.0,0.00098995,120]
[342991034,1732264248154,-500.0,0.00098996,120]
[342991035,1732264248165,-500.0,0.00098996,120]
[342991036,1732264248175,-500.0,0.00098996,120]
[342991037,1732264248184,-500.0,0.00098996,120]
[342991038,1732264248194,-500.0,0.00098996,120]
[342991039,1732264248204,-193.64,0.00098996,120]
[342991040,1732264248215,-1000.0,0.00098996,30]
[342991041,1732264248225,-714000.99999999,0.00098997,120]
[342991042,1732264248235,-1079.87615,0.00098999,120]
[342991043,1732264248245,-500.0,0.00098999,120]
[342991044,1732264248255,-237.48840896,0.00098999,120]
[342991045,1732264248264,-500.0,0.00098999,21]
[342991046,1732264248274,-500.0,0.00098999,120]
[342991047,1732264248284,-500.0,0.00098999,120]
[342991048,1732264248294,-500.0,0.00098999,120]
[342991049,1732264248303,-582.49,0.00098999,120]
[342991050,1732264248313,-214.78,0.00098999,120]
[342991051,1732264248325,-500.0,0.00098999,120]
[342991052,1732264248335,-7917297.40531102,0.00099,45]
[342991053,1732264248351,-12743918.7910977,0.00099,45]
[342991054,1732264248367,-2070.16129604,0.00099,45]
[342991055,1732264361184,250.0,0.00031,2]
[342991056,1732264362341,300.0,0.00033,2]
[342991057,1732264622512,800.0,0.00026986,120]
[342991058,1732264705411,176.05742856,0.00030137,2]
[342991059,1732264705481,523.1164516,0.00031945,120]
[342991060,1732265187919,300.0,0.00032,30]
[342991061,1732265236100,-150.0,0.00034548,10]
[342991062,1732265236122,-350.0,0.00035,2]
[342991063,1732265236148,-400.0,0.00037,2]
[342991064,1732265236169,-450.0,0.00039,2]
[342991065,1732265236192,-161.11,0.00041096,2]
[342991066,1732265236213,-102.8278707,0.00041715,2]
[342991068,1732265346281,-159.78,0.00041096,2]
[342991069,1732265346301,-1416.217589,0.00041898,7]
[342991070,1732265346324,-826.00397343,0.00044899,2]
[342991071,1732265346345,-150.0,0.00044986,2]
[342991072,1732265346367,-300.0,0.00044999,5]
[342991073,1732265346393,-5617.35002757,0.00045,4]
[342991074,1732265347089,-3693.179588,0.00045,4]
[342991075,1732265349077,-2644.617024,0.00045,4]
[342991076,1732265363100,-901.6388668,0.00045,4]
[342991077,1732265368079,-4071.627168,0.00045,4]
[342991078,1732265370091,-540.8044936,0.00045,4]
[342991079,1732265373091,-7154.16905,0.00045,4]
[342991080,1732265374092,-5576.61378203,0.00045,4]
[342991081,1732265374113,-826.00397341,0.00045489,2]
[342991082,1732265374133,-150.0,0.00045589,10]
[342991083,1732265374154,-498.40615144,0.00049497,30]
[342991084,1732265374175,-289.31,0.00049497,87]
[342991085,1732265374196,-178.98589896,0.00049497,87]
[342991086,1732265374216,-44.72839329,0.0004979,2]
[342991103,1732265432002,-1425.11664156,0.0004979,2]
[342991104,1732265432012,-255.0,0.00049799,4]
[342991105,1732265432022,-2674.40626197,0.000498,120]
[342991106,1732265432033,-5828.24959688,0.000498,120]
[342991107,1732265432043,-294.45414212,0.000498,120]
[342991108,1732265432055,-641.60804426,0.000498,120]
[342991109,1732265432111,-405.1405,0.000498,120]
[342991110,1732265432167,-3371.85421475,0.000498,120]
[342991111,1732265432224,-5971.06367863,0.000498,120]
[342991112,1732265432234,-900.0,0.00054239,60]
[342991113,1732265432243,-500.0,0.00054795,120]
[342991114,1732265432253,-175.82687311,0.00055,100]
[342991115,1732265432263,-165.80026587,0.00056477,120]
[342991116,1732265432390,-734.19973413,0.00056477,120]
[342991117,1732265432400,-900.0,0.00058826,120]
[342991118,1732265432409,-900.0,0.00059737,120]
[342991119,1732265432419,-900.0,0.00059827,120]
[342991120,1732265432429,-2029.02865631,0.0006,120]
[342991121,1732265432439,-824.58,0.00060184,30]
[342991122,1732265432448,-25000.0,0.00060527,30]
[342991123,1732265432457,-900.0,0.00064546,120]
[342991124,1732265432467,-289.311,0.00064623,120]
[342991125,1732265432477,-10000.0,0.00064754,120]
[342991126,1732265432487,-206.94,0.00065,120]
[342991127,1732265432497,-900.0,0.00065569,120]
[342991129,1732265432506,-1000.0,0.00065753,120]
[342991131,1732265432515,-1000.0,0.00065753,120]
[342991132,1732265432525,-1000.0,0.00065753,120]
[342991135,1732265432534,-1000.0,0.00065753,120]
[342991136,1732265432550,-1000.0,0.00065753,120]
[342991138,1732265432560,-1000.0,0.00065753,120]
[342991140,1732265432569,-1000.0,0.00065753,120]
[342991142,1732265432583,-1000.0,0.00065753,120]
[342991143,1732265432593,-1000.0,0.00065753,120]
[342991144,1732265432602,-1000.0,0.00065753,120]
[342991145,1732265432612,-1000.0,0.00065753,120]
[342991146,1732265432621,-1000.0,0.00065753,120]
[342991147,1732265432631,-1000.0,0.00065753,120]
[342991148,1732265432640,-1000.0,0.00065753,120]
[342991149,1732265432649,-1000.0,0.00065753,120]
[342991150,1732265432659,-1000.0,0.00065753,120]
[342991151,1732265432669,-1000.0,0.00065753,120]
[342991152,1732265432678,-1000.0,0.00065753,120]
[342991153,1732265432688,-1000.0,0.00065753,120]
[342991154,1732265432697,-1000.0,0.00065753,120]
[342991155,1732265432707,-1000.0,0.00065753,120]
[342991156,1732265432717,-1000.0,0.00065753,120]
[342991157,1732265432726,-1000.0,0.00065753,120]
[342991158,1732265432735,-1000.0,0.00065753,120]
[342991159,1732265432744,-1000.0,0.00065753,120]
[342991160,1732265432755,-1000.0,0.00065753,120]
[342991161,1732265432764,-1000.0,0.00065753,120]
[342991162,1732265432773,-1000.0,0.00065753,120]
[342991163,1732265432782,-1000.0,0.00065753,120]
[342991164,1732265432795,-1000.0,0.00065753,120]
[342991165,1732265432804,-1000.0,0.00065753,120]
[342991166,1732265432814,-1000.0,0.00065753,120]
[342991167,1732265432823,-1000.0,0.00065753,120]
[342991168,1732265432832,-1000.0,0.00065753,120]
[342991169,1732265432842,-1000.0,0.00065753,120]
[342991170,1732265432851,-1000.0,0.00065753,120]
[342991171,1732265432861,-1000.0,0.00065753,120]
[342991172,1732265432870,-1000.0,0.00065753,120]
[342991173,1732265432879,-1000.0,0.00065753,120]
[342991174,1732265432889,-1000.0,0.00065753,120]
[342991175,1732265432898,-1000.0,0.00065753,120]
[342991176,1732265432908,-1000.0,0.00065753,120]
[342991177,1732265432917,-1000.0,0.00065753,120]
[342991178,1732265432927,-1000.0,0.00065753,120]
[342991179,1732265432935,-1000.0,0.00065753,120]
[342991180,1732265432946,-1000.0,0.00065753,120]
[342991181,1732265432957,-1000.0,0.00065753,120]
[342991182,1732265432966,-1000.0,0.00065753,120]
[342991183,1732265432976,-1000.0,0.00065753,120]
[342991184,1732265432985,-1000.0,0.00065753,120]
[342991185,1732265432995,-1000.0,0.00065753,120]
[342991186,1732265433004,-1000.0,0.00065753,120]
[342991187,1732265433013,-1000.0,0.00065753,120]
[342991188,1732265433022,-1000.0,0.00065753,120]
[342991189,1732265433034,-1000.0,0.00065753,120]
[342991190,1732265433048,-1000.0,0.00065753,120]
[342991191,1732265433058,-1391.12452312,0.00065753,120]
[342991192,1732265433068,-900.0,0.00065877,120]
[342991193,1732265433077,-200.0,0.00066,120]
[342991194,1732265433089,-10000.0,0.00066383,120]
[342991195,1732265433099,-151.58079827,0.00066591,40]
[342991196,1732265433109,-1000.0,0.0006698,120]
[342991197,1732265433119,-251.42,0.00067363,120]
[342991198,1732265433129,-900.0,0.00067801,120]
[342991199,1732265433282,-250.0,0.00067823,120]
[342991200,1732265433294,-900.0,0.00067837,120]
[342991201,1732265433305,-210.6,0.00068013,2]
[342991202,1732265433316,-157.29,0.00068874,2]
[342991203,1732265433327,-157.29,0.00068908,2]
[342991204,1732265433337,-157.29,0.00068943,2]
[342991205,1732265433347,-157.29,0.00068977,2]
[342991206,1732265433357,-157.29,0.00069011,2]
[342991207,1732265433367,-157.29,0.00069046,2]
[342991208,1732265433377,-157.29,0.0006908,2]
[342991209,1732265433386,-157.29,0.00069115,2]
[342991210,1732265433395,-157.29,0.00069149,2]
[342991211,1732265433405,-157.29,0.00069184,2]
[342991212,1732265433415,-157.29,0.00069218,2]
[342991213,1732265433424,-6385.46128309,0.0007,120]
[342991214,1732265433433,-900.0,0.0007027,120]
[342991215,1732265433443,-210.6,0.00070277,2]
[342991216,1732265433454,-210.56,0.00071061,90]
[342991217,1732265433463,-158.74,0.0007116,120]
[342991218,1732265433473,-457.51,0.00071437,120]
[342991219,1732265433482,-23900.0,0.00071553,2]
[342991220,1732265433492,-171.15881336,0.00071556,15]
[342991221,1732265433501,-157.86,0.00071656,120]
[342991222,1732265433510,-1234.01,0.00071845,2]
[342991223,1732265433519,-210.6,0.00072541,2]
[342991224,1732265433529,-250.0,0.00073396,120]
[342991225,1732265433539,-4846.63,0.0007444,60]
[342991226,1732265433550,-900.0,0.00074677,120]
[342991227,1732265433560,-210.6,0.00074804,2]
[342991228,1732265433570,-599.431,0.00075168,120]
[342991229,1732265433580,-1000.0,0.00075353,120]
[342991230,1732265433590,-900.0,0.00075459,120]
[342991231,1732265433601,-171.15881332,0.0007628,15]
[342991232,1732265433611,-188.92539833,0.00076941,17]
[342991233,1732265433623,-210.6,0.00077068,2]
[342991234,1732265433633,-10000.0,0.00077366,120]
[342991235,1732265433643,-155.912,0.0007737,2]
[342991236,1732265433653,-210.6,0.00079332,2]
[342991237,1732265433663,-289.31,0.00079749,120]
[342991238,1732265433673,-900.0,0.00079804,120]
[342991239,1732265433683,-900.0,0.00079879,120]
[342991240,1732265433693,-900.0,0.00079901,120]
[342991241,1732265433703,-457.51,0.00080367,120]
[342991242,1732265433713,-900.0,0.00080948,120]
[342991243,1732265433723,-171.15881332,0.00081004,15]
[342991244,1732265433734,-210.6,0.00081596,2]
[342991245,1732265433744,-155.937,0.0008219,120]
[342991246,1732265433754,-1000.0,0.00083725,120]
[342991247,1732265433764,-210.6,0.0008386,2]
[342991248,1732265433774,-157.86,0.0008393,120]
[342991249,1732265433783,-8163.33005205,0.00084409,15]
[342991250,1732265433794,-427.9264,0.00084409,120]
[342991251,1732265433804,-341.0,0.00084509,120]
[342991252,1732265433813,-341.0,0.00084509,120]
[342991253,1732265433823,-341.0,0.00084509,120]
[342991254,1732265433832,-341.0,0.00084509,120]
[342991255,1732265433842,-341.0,0.00084509,120]
[342991256,1732265433851,-341.0,0.00084509,120]
[342991257,1732265433860,-341.0,0.00084509,120]
[342991258,1732265433870,-341.0,0.00084509,120]
[342991259,1732265433879,-341.0,0.00084509,120]
[342991260,1732265433889,-341.0,0.00084509,120]
[342991261,1732265433899,-341.0,0.00084509,120]
[342991262,1732265433908,-341.0,0.00084509,120]
[342991263,1732265433917,-341.0,0.00084509,120]
[342991264,1732265433927,-341.0,0.00084509,120]
[342991265,1732265433936,-341.0,0.00084509,120]
[342991266,1732265433946,-341.0,0.00084509,120]
[342991267,1732265433959,-341.0,0.00084509,120]
[342991268,1732265433969,-341.0,0.00084509,120]
[342991269,1732265433978,-341.0,0.00084509,120]
[342991270,1732265433987,-341.0,0.00084509,120]
[342991271,1732265433997,-341.0,0.00084509,120]
[342991272,1732265434007,-341.0,0.00084509,120]
[342991273,1732265434016,-341.0,0.00084509,120]
[342991274,1732265434026,-341.0,0.00084509,120]
[342991275,1732265434035,-341.0,0.00084509,120]
[342991276,1732265434045,-341.0,0.00084509,120]
[342991277,1732265434054,-341.0,0.00084509,120]
[342991278,1732265434063,-341.0,0.00084509,120]
[342991279,1732265434073,-341.0,0.00084509,120]
[342991280,1732265434082,-341.0,0.00084509,120]
[342991281,1732265434092,-341.0,0.00084509,120]
[342991282,1732265434102,-341.0,0.00084509,120]
[342991283,1732265434111,-341.0,0.00084509,120]
[342991284,1732265434120,-341.0,0.00084509,120]
[342991285,1732265434129,-341.0,0.00084509,120]
[342991286,1732265434139,-341.0,0.00084509,120]
[342991287,1732265434148,-341.0,0.00084509,120]
[342991288,1732265434157,-341.0,0.00084509,120]
[342991289,1732265434167,-500.0,0.000846,7]
[342991290,1732265434176,-500.0,0.000846,2]
[342991291,1732265434185,-900.0,0.00085007,120]
[342991292,1732265434194,-1000.0,0.00085148,7]
[342991293,1732265434203,-505.10106165,0.00085148,2]
[342991294,1732265434213,-10000.0,0.00085525,120]
[342991295,1732265434222,-900.0,0.0008565,120]
[342991296,1732265434231,-171.15881332,0.00085728,15]
[342991297,1732265434240,-900.0,0.00085938,120]
[342991298,1732265434249,-210.6,0.00086124,2]
[342991299,1732265434259,-8163.33005201,0.0008613,15]
[342991300,1732265434268,-1500.0,0.0008615,7]
[342991301,1732265434278,-900.0,0.0008637,120]
[342991302,1732265434287,-510.6427,0.00086785,120]
[342991303,1732265434299,-2500.0,0.00086785,30]
[342991304,1732265434309,-1000.0,0.00086785,30]
[342991305,1732265434318,-155.955,0.0008701,120]
[342991306,1732265434328,-2000.0,0.00087447,7]
[342991307,1732265434337,-8163.33005201,0.00087851,15]
[342991308,1732265434347,-900.0,0.00088309,120]
[342991309,1732265434356,-210.6,0.00088388,2]
[342991310,1732265434365,-2500.0,0.00088984,7]
[342991311,1732265434375,-457.51,0.00089296,120]
[342991312,1732265434384,-900.0,0.00089556,120]
[342991313,1732265434393,-8163.33005201,0.00089573,15]
[342991314,1732265434402,-4985.77354912,0.0009,120]
[342991315,1732265434412,-1000.0,0.0009,120]
[342991316,1732265434421,-171.15881332,0.00090452,15]
[342991317,1732265434431,-900.0,0.00090569,120]
[342991318,1732265434440,-210.6,0.00090652,2]
[342991319,1732265434449,-2518.06561394,0.00090726,7]
[342991320,1732265434459,-8163.33005201,0.00091294,15]
[342991321,1732265434468,-900.0,0.00091447,120]
[342991322,1732265434478,-10000.0,0.00091989,120]
[342991323,1732265434487,-1000.0,0.00092098,120]
[342991324,1732265434497,-210.6,0.00092916,2]
[342991325,1732265434506,-8163.33005201,0.00093015,15]
[342991326,1732265434516,-900.0,0.0009368,120]
[342991327,1732265434526,-900.0,0.00093853,120]
[342991328,1732265434536,-6497.43340825,0.00094274,120]
[342991329,1732265434546,-303.7308,0.000943,120]
[342991330,1732265434555,-66980.3666,0.000943,120]
[342991331,1732265434564,-7744.0462,0.000943,30]
[342991332,1732265434574,-752.8286,0.000943,120]
[342991333,1732265434583,-900.0,0.00094397,120]
[342991334,1732265434593,-848.92,0.000944,120]
[342991335,1732265434602,-1724.58143732,0.00094489,120]
[342991336,1732265434612,-8163.33005201,0.00094736,15]
[342991337,1732265434621,-289.311,0.00094874,120]
[342991338,1732265434632,-1027.0,0.00095,120]
[342991339,1732265434642,-2018.3520014,0.00095,120]
[342991340,1732265434651,-171.15881332,0.00095176,15]
[342991341,1732265434660,-210.6,0.00095179,2]
[342991342,1732265434670,-194.0,0.00095701,30]
[342991343,1732265434679,-341.0,0.0009589,120]
[342991344,1732265434688,-341.0,0.0009589,120]
[342991345,1732265434697,-341.0,0.0009589,120]
[342991346,1732265434706,-341.0,0.0009589,120]
[342991347,1732265434715,-341.0,0.0009589,120]
[342991348,1732265434724,-341.0,0.0009589,120]
[342991349,1732265434733,-341.0,0.0009589,120]
[342991350,1732265434742,-341.0,0.0009589,120]
[342991351,1732265434752,-341.0,0.0009589,120]
[342991352,1732265434761,-341.0,0.0009589,120]
[342991353,1732265434770,-341.0,0.0009589,120]